bitfinex/quotes_ETHUSD_20250720
["timestamp","ask_amount","ask_price","bid_price","bid_amount"]
[1752992271542,4.6276,3642.7,3642.6,2.88209182]
[1752992272388,5.4179,3642.7,3642.6,0.1368]
[1752992272542,5.88106,3642.7,3642.4,0.001]
[1752992272730,0.4726,3642.6,3642.4,0.1378]
[1752992274045,4.153,3642.5,3642.4,0.1378]
[1752992274366,4.6256,3642.5,3642.4,0.1378]
[1752992276979,8.74937319,3642.5,3642.4,0.001]
[1752992287095,6.004006,3642.5,3642.4,0.001]
[1752992287700,8.74937319,3642.5,3642.4,0.001]
[1752992287906,8.70827319,3642.5,3642.4,0.001]
[1752992288203,5.3748,3642.5,3642.4,0.001]
[1752992288380,4.5845,3642.5,3642.4,0.001]
[1752992288698,0.4305,3642.5,3642.4,0.001]
[1752992288890,4.5845,3642.5,3642.4,0.001]
[1752992289917,4.154,3642.5,3642.4,0.001]
[1752992290575,4.154,3642.5,3642.4,2.74644256]
[1752992290764,0.9354,3642.7,3642.4,0.42622426]
[1752992290765,0.002,3642.7,3642.4,0.42622426]
[1752992290965,0.002,3642.7,3642.6,2.74529182]
[1752992291167,0.002,3642.7,3642.6,3.70219182]
[1752992291368,0.002,3642.7,3642.6,4.15799182]
[1752992299058,0.002,3642.7,3642.6,10.31256941]
[1752992299202,0.002,3642.9,3642.6,10.31256941]
[1752992299203,0.002,3642.9,3642.8,6.5202411]
[1752992299399,0.002,3643.7,3643.0,0.7751]
[1752992299599,0.002,3643.7,3643.4,6.51978902]
[1752992299807,0.002,3643.7,3643.4,6.65658902]
[1752992300033,0.002,3643.7,3643.4,7.11238902]
[1752992302847,0.002,3644.0,3643.9,2.74431241]
[1752992303031,0.002,3644.0,3643.9,3.56885553]
[1752992303535,0.002,3644.0,3643.9,4.16145553]
[1752992304320,0.002,3644.0,3643.9,3.67821241]
[1752992304721,0.002,3644.0,3643.9,2.88111241]
[1752992304962,0.002,3644.0,3643.9,4.32506412]
[1752992307252,0.002,3644.2,3644.1,2.74416179]
[1752992307489,0.002,3644.2,3644.1,2.88096179]
[1752992307747,0.002,3644.2,3644.1,3.33676179]
[1752992308917,0.002,3644.2,3644.1,0.1368]
[1752992309149,0.4451,3644.2,3644.1,0.1368]
[1752992309467,0.4451,3644.2,3643.4,2.74467975]
[1752992309468,0.7641,3644.0,3643.4,2.74467975]
[1752992309770,0.4431,3643.9,3643.7,0.1368]
[1752992310434,0.7641,3644.0,3643.7,0.1368]
[1752992310640,0.4431,3643.8,3643.7,0.1368]
[1752992312857,0.4431,3643.8,3643.7,2.88126304]
[1752992312858,4.156,3643.8,3643.7,2.88126304]
[1752992313058,4.156,3643.8,3643.7,3.52378058]
[1752992313557,0.002,3644.2,3643.7,0.77931754]
[1752992313742,4.156,3644.1,3644.0,2.74419501]
[1752992314163,4.156,3644.1,3644.0,2.88099501]
[1752992314452,0.002,3644.2,3644.1,2.74416179]
[1752992314754,0.002,3644.2,3644.1,3.30667747]
[1752992325191,0.002,3644.4,3644.3,2.74401119]
[1752992325374,0.002,3644.4,3644.3,2.88081119]
[1752992325554,0.002,3644.4,3644.3,3.32671119]
[1752992325757,0.002,3644.4,3644.3,4.57992732]
[1752992326289,0.002,3644.4,3644.3,4.13402732]
[1752992329499,0.002,3644.4,3644.3,5.39472732]
[1752992330710,0.002,3644.4,3644.3,5.42216743]
[1752992336084,0.002,3644.4,3644.3,10.08216739]
[1752992336283,0.002,3644.4,3644.3,10.05472728]
[1752992338095,0.002,3644.4,3644.3,5.39472732]
[1752992338429,0.002,3644.4,3644.3,5.42216743]
[1752992340330,0.002,3644.4,3644.3,4.94882732]
[1752992342032,0.002,3644.4,3644.3,5.38312732]
[1752992342234,0.002,3644.4,3644.3,5.41056743]
[1752992343044,0.002,3644.7,3644.4,2.7439359]
[1752992343356,0.002,3644.7,3644.6,2.74378532]
[1752992343742,0.002,3644.7,3644.6,2.88058532]
[1752992343951,0.002,3644.7,3644.6,3.31488532]
[1752992344120,0.002,3644.7,3644.6,2.88058532]
[1752992345761,0.4614,3644.7,3644.6,2.88058532]
[1752992345950,0.002,3644.7,3644.6,4.09390521]
[1752992347228,0.002,3644.7,3644.6,4.52820521]
[1752992347429,0.002,3644.7,3644.6,4.09390521]
[1752992350439,0.4614,3644.7,3644.6,4.09390521]
[1752992350838,0.4614,3644.7,3644.6,2.88058532]
[1752992355370,0.002,3644.7,3644.6,4.17482317]
[1752992356167,0.002,3644.7,3644.6,4.14738532]
[1752992356547,0.002,3644.7,3644.6,4.17482317]
[1752992357270,1e-08,3644.7,3644.6,11.83482313]
[1752992357471,1e-08,3644.7,3644.6,14.39554167]
[1752992357893,1e-08,3644.7,3644.6,19.09654167]
[1752992358486,1e-08,3645.0,3644.9,3.57605949]
[1752992358652,1e-08,3645.0,3644.9,12.41449504]
[1752992358854,1e-08,3645.0,3644.9,15.0666565]
[1752992359483,0.7784,3648.0,3645.1,5.4868179]
[1752992359668,0.7784,3648.0,3645.0,0.8325]
[1752992359669,0.7784,3648.0,3647.9,2.74130321]
[1752992359866,0.7784,3648.0,3647.5,0.02741603]
[1752992359867,1.2378,3648.0,3647.5,0.02741603]
[1752992360178,1.2378,3648.0,3647.9,2.74130321]
[1752992360179,0.7784,3648.0,3647.9,2.74130321]
[1752992360577,1.2378,3648.0,3647.0,2.74192729]
[1752992360776,1.2378,3648.0,3646.7,0.8325]
[1752992360777,0.7784,3648.0,3647.2,2.74182934]
[1752992361091,0.4594,3647.9,3647.8,2.74137836]
[1752992362394,0.7784,3648.0,3647.9,2.74130321]
[1752992362570,1.2378,3648.0,3647.8,2.74136774]
[1752992362780,0.4594,3647.9,3647.3,4.189]
[1752992363281,0.8037,3647.8,3646.5,5.74229969]
[1752992363486,0.8037,3647.6,3646.7,3.0]
[1752992363683,0.4594,3647.5,3647.0,2.7419164]
[1752992363870,0.4594,3647.5,3647.2,2.74176878]
[1752992364067,0.4594,3647.5,3647.3,2.74173698]
[1752992364604,0.4594,3647.4,3647.1,2.74188998]
[1752992364821,0.8037,3647.6,3647.5,2.74160383]
[1752992365110,0.8037,3647.6,3646.8,0.0274213]
[1752992365111,0.8037,3648.7,3648.1,2.74109852]
[1752992365310,0.8037,3648.5,3648.0,2.74120749]
[1752992365511,0.8037,3648.5,3648.1,2.7411355]
[1752992365512,0.4594,3648.4,3648.1,2.7411355]
[1752992366182,0.8037,3648.3,3648.1,2.7411355]
[1752992366383,0.4594,3648.2,3647.8,2.74130331]
[1752992366590,0.8037,3648.1,3646.7,2.74220528]
[1752992366768,0.8037,3647.9,3647.3,2.74175304]
[1752992367095,0.8037,3647.7,3646.8,2.74211324]
[1752992367269,0.4594,3647.6,3646.8,2.74211324]
[1752992367472,0.767,3647.5,3646.8,2.74211324]
[1752992367680,0.4578,3647.4,3646.8,2.74211324]
[1752992367913,0.4578,3647.4,3646.8,2.74207627]
[1752992368209,1.08694356,3647.3,3646.3,4.191]
[1752992368369,0.4578,3647.2,3646.8,2.74210952]
[1752992368572,0.4578,3647.2,3646.7,2.74218298]
[1752992369607,0.4578,3647.2,3646.9,0.1368]
[1752992372422,0.767,3647.3,3646.9,0.1368]
[1752992372423,2.7419797,3647.0,3646.9,0.1368]
[1752992372571,2.7419797,3647.0,3645.7,2.74295479]
[1752992372572,2.74242513,3646.5,3645.1,0.7563]
[1752992372810,5.4338,3646.4,3645.7,2.7429009]
[1752992373008,4.984,3646.4,3645.7,2.7429009]
[1752992373322,0.4578,3646.3,3645.4,2.74311209]
[1752992373654,0.4578,3646.3,3645.4,3.13644908]
[1752992373941,0.4578,3646.3,3645.5,2.74310794]
[1752992374150,0.787,3646.1,3645.4,2.74310951]
[1752992374331,0.4578,3646.0,3645.4,2.74310951]
[1752992375329,3.20055066,3646.0,3645.3,2.74324545]
[1752992375626,0.4578,3645.9,3645.4,2.74317601]
[1752992376044,0.4578,3645.8,3645.4,2.74317601]
[1752992376390,0.4578,3645.7,3645.3,2.7432414]
[1752992376732,0.4578,3645.6,3645.1,3.43395776]
[1752992377076,1.2448,3645.5,3645.2,2.74332123]
[1752992377244,0.4578,3645.4,3644.9,2.74355034]
[1752992377440,0.4578,3645.4,3644.8,2.74362058]
[1752992377783,3.20098514,3645.4,3644.7,2.74370845]
[1752992377929,0.4578,3645.3,3644.7,4.05467875]
[1752992378125,0.4578,3645.3,3644.7,1.31102287]
[1752992378361,0.787,3645.2,3644.5,2.74380809]
[1752992378591,0.787,3645.2,3644.5,2.74384445]
[1752992378592,0.4578,3645.1,3644.5,2.74384445]
[1752992379328,0.4578,3645.1,3644.3,3.15557759]
[1752992379565,2.74349375,3645.0,3644.4,3.0]
[1752992379871,0.4578,3644.9,3644.4,4.05531039]
[1752992380166,0.4578,3644.8,3644.4,4.05531039]
[1752992380752,0.4578,3644.8,3644.4,1.31137542]
[1752992381867,2.74349669,3645.0,3644.3,0.001]
[1752992381868,0.787,3644.6,3644.3,0.001]
[1752992382066,0.787,3644.6,3644.4,0.001]
[1752992382584,0.787,3644.6,3644.5,0.1368]
[1752992382954,3.53078532,3644.6,3644.5,0.1368]
[1752992383155,2.74386061,3644.5,3644.4,0.001]
[1752992383481,3.20166061,3644.5,3644.4,0.001]
[1752992383641,2.74386061,3644.5,3644.4,0.001]
[1752992384005,3.20166061,3644.5,3644.4,0.001]
[1752992384787,7.39566061,3644.5,3644.4,0.001]
[1752992386668,4.6518,3644.5,3644.4,0.001]
[1752992388077,7.39566061,3644.5,3644.4,0.001]
[1752992388444,4.6518,3644.5,3644.4,0.001]
[1752992388770,7.39566061,3644.5,3644.4,0.001]
[1752992389154,4.6518,3644.5,3644.4,0.001]
[1752992390573,2.06682176,3644.7,3644.6,2.74378532]
[1752992390775,2.06682176,3644.7,3644.6,3.60821406]
[1752992390940,2.06682176,3644.7,3644.6,0.1368]
[1752992391139,2.52462176,3644.7,3644.4,0.001]
[1752992391370,0.8186,3644.5,3644.4,0.001]
[1752992392062,1.2764,3644.5,3644.4,0.001]
[1752992392877,4.02026061,3644.5,3644.4,0.001]
[1752992393864,5.33651253,3644.5,3644.4,0.001]
[1752992395147,2.59265192,3644.5,3644.4,0.001]
[1752992395546,1.2764,3644.5,3644.4,0.001]
[1752992398780,4.02026061,3644.5,3644.4,0.001]
[1752992403957,1.2764,3644.5,3644.4,0.001]
[1752992404161,0.4578,3644.5,3644.4,0.001]
[1752992404364,4.6468,3644.5,3644.4,0.001]
[1752992405079,4.189,3644.5,3644.4,0.001]
[1752992406292,2.96672176,3644.7,3644.4,0.001]
[1752992406614,4.19,3644.6,3644.4,0.001]
[1752992406804,4.6433,3644.6,3644.4,0.001]
[1752992406998,4.19,3644.6,3644.4,0.001]
[1752992407201,3.19716061,3644.5,3644.4,0.001]
[1752992407513,3.98806061,3644.5,3644.4,0.001]
[1752992407682,3.53476061,3644.5,3644.4,0.001]
[1752992407881,3.98806061,3644.5,3644.4,0.001]
[1752992408197,1.2442,3644.5,3644.4,0.001]
[1752992409181,3.98806061,3644.5,3644.4,0.001]
[1752992409400,5.38592594,3644.5,3644.4,0.001]
[1752992411194,2.64206533,3644.5,3644.4,0.001]
[1752992411397,5.38592594,3644.5,3644.4,0.001]
[1752992415920,4.93262594,3644.5,3644.4,0.001]
[1752992416103,7.71976061,3644.5,3644.4,0.001]
[1752992416300,11.17306061,3644.5,3644.4,0.001]
[1752992417125,11.72306061,3644.5,3644.4,0.001]
[1752992418006,5.8807359,3644.4,3644.3,0.001]
[1752992418206,6.6600359,3644.4,3644.3,0.001]
[1752992418402,9.11705556,3644.4,3644.3,0.001]
[1752992419793,10.22796408,3644.2,3644.1,0.001]
[1752992420121,7.07361241,3643.9,3643.8,0.001]
[1752992420342,13.26684227,3643.9,3643.8,0.001]
[1752992420526,13.72014227,3643.9,3643.8,0.001]
[1752992426125,13.71814227,3643.9,3643.8,0.001]
[1752992428038,13.92059905,3643.9,3643.8,1e-08]
[1752992428229,14.3265757,3643.9,3643.8,1e-08]
[1752992428424,4.11996304,3643.7,3643.6,1e-08]
[1752992428743,14.80427686,3643.7,3643.6,1e-08]
[1752992428954,15.26337686,3643.7,3643.6,1e-08]
[1752992429437,45.26337686,3643.7,3643.6,1e-08]
[1752992430738,7.92179927,3643.7,3643.6,1e-08]
[1752992431120,12.10779927,3643.7,3643.6,1e-08]
[1752992433721,6.43133836,3643.6,3643.5,1e-08]
[1752992433926,39.72675802,3643.6,3643.5,1e-08]
[1752992435445,9.72675802,3643.6,3643.5,1e-08]
[1752992436310,13.91175802,3643.6,3643.5,1e-08]
[1752992438443,13.91075802,3643.6,3643.5,1e-08]
[1752992439136,9.72675802,3643.6,3643.5,1e-08]
[1752992439514,13.90975802,3643.6,3643.5,1e-08]
[1752992440752,43.90975802,3643.6,3643.5,1e-08]
[1752992443646,39.72675802,3643.6,3643.5,1e-08]
[1752992443855,13.90875802,3643.6,3643.5,1e-08]
[1752992448327,17.06333561,3643.6,3643.5,1e-08]
[1752992448526,47.06333561,3643.6,3643.5,1e-08]
[1752992448866,7.0520397,3643.2,3643.1,1e-08]
[1752992449047,14.38661729,3643.2,3643.1,1e-08]
[1752992449360,7.18891504,3643.1,3643.0,1e-08]
[1752992449666,6.29499039,3643.0,3642.9,1e-08]
[1752992449865,42.03502662,3643.0,3642.9,1e-08]
[1752992450044,41.57592662,3643.0,3642.9,1e-08]
[1752992450252,42.03502662,3643.0,3642.9,1e-08]
[1752992450750,6.2951411,3642.8,3642.7,1e-08]
[1752992451048,44.38891869,3642.8,3642.7,1e-08]
[1752992451268,44.84801869,3642.8,3642.7,1e-08]
[1752992456064,45.25399534,3642.8,3642.7,1e-08]
[1752992457331,41.07199534,3642.8,3642.7,1e-08]
[1752992457631,46.84924855,3642.8,3642.7,1e-08]
[1752992460130,46.82074855,3642.8,3642.7,1e-08]
[1752992460536,11.92737096,3642.8,3642.7,1e-08]
[1752992460956,12.47737096,3642.8,3642.7,1e-08]
[1752992467345,9.9231411,3642.8,3642.7,0.43320001]
[1752992467542,9.9231411,3642.8,3642.7,1.18340001]
[1752992469256,4.178,3642.8,3642.7,1.18340001]
[1752992472459,6.9231411,3642.8,3642.7,0.75020001]
[1752992472782,11.30971775,3642.8,3642.7,1e-08]
[1752992472954,13.04432764,3642.8,3642.7,1e-08]
[1752992473152,12.63835099,3642.8,3642.7,1e-08]
[1752992473379,12.20775099,3642.8,3642.7,1e-08]
[1752992473566,12.20775099,3642.8,3642.7,1.25480001]
[1752992473567,9.9221411,3642.8,3642.7,1.25480001]
[1752992473772,6.9221411,3642.8,3642.7,1.25480001]
[1752992474076,4.177,3642.8,3642.7,1.25480001]
[1752992474462,6.9221411,3642.8,3642.7,1.25480001]
[1752992475081,6.9221411,3642.8,3642.7,0.82160001]
[1752992475895,6.9221411,3642.8,3642.7,1e-08]
[1752992480860,6.9221411,3642.8,3642.7,0.43320001]
[1752992482305,2.74484117,3643.2,3642.8,0.7884]
[1752992482454,4.178,3643.1,3642.8,0.7884]
[1752992482792,4.178,3643.1,3642.9,0.4332]
[1752992482997,6.92292296,3643.1,3643.0,0.4332]
[1752992484294,2.74501062,3643.0,3642.8,1.2216]
[1752992484495,4.177,3642.9,3642.8,1.2216]
[1752992484674,6.92206574,3642.9,3642.8,1.2216]
[1752992485688,2.7451411,3642.8,3642.7,1e-08]
[1752992487082,6.92208918,3642.9,3642.7,0.43320001]
[1752992487613,6.92208918,3642.9,3642.8,0.4332]
[1752992488390,2.7451411,3642.8,3642.7,1e-08]
[1752992492109,4.17513635,3642.8,3642.7,1e-08]
[1752992492304,7.17513635,3642.8,3642.7,1e-08]
[1752992492507,7.72513635,3642.8,3642.7,1e-08]
[1752992493197,7.72713635,3642.8,3642.7,1e-08]
[1752992494176,7.27753635,3642.8,3642.7,1e-08]
[1752992494398,8.54443635,3642.8,3642.7,1e-08]
[1752992497998,3.29521646,3642.7,3642.6,1e-08]
[1752992498313,9.77891899,3642.7,3642.6,1e-08]
[1752992500030,10.60111899,3642.7,3642.6,1e-08]
[1752992500987,40.60111899,3642.7,3642.6,1e-08]
[1752992502686,43.60111899,3642.7,3642.4,1e-08]
[1752992502931,7.23144478,3642.5,3642.4,1e-08]
[1752992503118,11.40244478,3642.5,3642.4,1e-08]
[1752992503424,11.85204478,3642.5,3642.4,1e-08]
[1752992503825,14.85204478,3642.5,3642.4,1e-08]
[1752992507422,3.29559332,3642.2,3642.1,1e-08]
[1752992507592,8.80742106,3642.2,3642.1,1e-08]
[1752992507793,9.25702106,3642.2,3642.1,1e-08]
[1752992508800,9.25702106,3642.2,3641.9,1e-08]
[1752992508801,3.29574409,3642.0,3641.9,1e-08]
[1752992509027,10.62532168,3642.0,3641.9,1e-08]
[1752992509222,12.90434349,3642.0,3641.9,1e-08]
[1752992510826,13.03905677,3642.0,3641.9,1e-08]
[1752992511444,5.25987918,3642.0,3641.9,1e-08]
[1752992511593,0.51712774,3642.2,3642.0,0.7912]
[1752992511796,6.9196687,3642.1,3642.0,0.7912]
[1752992512121,7.4696687,3642.1,3642.0,0.7912]
[1752992512321,7.4696687,3642.1,3642.0,1.2636]
[1752992512627,7.4696687,3642.1,3642.0,0.7912]
[1752992513007,7.4696687,3642.1,3642.0,1.2636]
[1752992513797,7.4696687,3642.1,3642.0,0.7912]
[1752992513994,7.4696687,3642.1,3642.0,1.2636]
[1752992514735,7.4696687,3642.1,3642.0,1.2646]
[1752992516905,7.4696687,3642.1,3642.0,0.001]
[1752992517639,8.50505848,3642.1,3642.0,0.001]
[1752992518540,8.96815848,3642.1,3642.0,0.001]
[1752992520930,8.50505848,3642.1,3642.0,0.001]
[1752992521467,7.4696687,3642.1,3642.0,0.001]
[1752992522539,4.174,3642.1,3642.0,0.001]
[1752992522764,6.9196687,3642.1,3642.0,0.001]
[1752992523872,10.4696687,3642.1,3642.0,0.001]
[1752992529865,10.9327687,3642.1,3642.0,0.001]
[1752992530073,13.40026751,3642.1,3642.0,0.001]
[1752992530567,12.16666751,3642.1,3642.0,0.001]
[1752992530768,10.4696687,3642.1,3642.0,0.001]
[1752992537337,0.7705,3642.6,3642.0,0.001]
[1752992537338,0.002,3643.0,3642.7,2.74521646]
[1752992537562,0.002,3643.7,3643.5,2.74461369]
[1752992537768,0.796,3645.4,3644.2,3.50778649]
[1752992538075,0.13904392,3645.6,3644.2,3.50778649]
[1752992538279,0.796,3646.1,3644.4,2.7439359]
[1752992538483,0.14294682,3646.1,3645.1,3.50710895]
[1752992538644,4.224,3645.8,3645.1,6.66168654]
[1752992538840,4.224,3645.8,3645.1,7.09458654]
[1752992539046,4.224,3645.8,3645.1,8.07840023]
[1752992540573,1e-08,3645.2,3645.1,11.07840023]
[1752992540944,1e-08,3645.2,3645.1,12.64850107]
[1752992541145,0.002,3646.6,3646.5,3.23965568]
[1752992541653,0.002,3646.6,3646.5,3.67255568]
[1752992541862,0.002,3646.6,3646.5,0.9302]
[1752992542247,0.002,3646.6,3646.5,1.29746462]
[1752992543486,0.002,3646.6,3646.5,0.9302]
[1752992543682,0.002,3646.6,3646.1,0.8018]
[1752992543884,0.002,3646.6,3646.1,1.2347]
[1752992544414,4.219,3646.5,3646.1,1.2347]
[1752992545795,6.96136395,3646.5,3646.1,1.2347]
[1752992546006,4.219,3646.5,3646.1,1.2347]
[1752992547697,5.18954306,3646.5,3646.1,0.1368]
[1752992547903,2.74257846,3646.3,3646.1,0.1368]
[1752992548073,3.20824487,3646.4,3645.7,0.8018]
[1752992548274,2.74265494,3646.2,3645.7,0.9386]
[1752992548508,2.74273552,3646.0,3645.7,0.1368]
[1752992549170,7.42346257,3646.1,3645.7,0.1368]
[1752992549399,6.95766257,3646.1,3645.7,0.1368]
[1752992549965,7.42346257,3646.1,3645.7,0.1368]
[1752992550184,2.7427946,3646.0,3645.7,0.1368]
[1752992550803,2.74281316,3645.9,3645.7,0.1368]
[1752992550966,2.7427436,3646.0,3645.7,0.1368]
[1752992551298,2.74274055,3646.0,3645.7,0.1368]
[1752992552500,6.95767225,3646.1,3645.7,0.1368]
[1752992552672,2.74274517,3646.0,3645.7,0.1368]
[1752992552874,6.95766643,3646.1,3645.7,0.6022]
[1752992553069,6.95766643,3646.1,3645.7,0.1368]
[1752992553670,2.74275073,3646.0,3645.7,0.1368]
[1752992554600,6.95767501,3646.1,3645.7,0.1368]
[1752992555405,2.74274548,3646.0,3645.7,0.1368]
[1752992557851,0.002,3646.1,3645.8,1.3795]
[1752992557983,1e-08,3647.2,3647.0,0.8295]
[1752992558187,0.8209,3649.0,3647.3,6.57125417]
[1752992558387,4.309,3648.5,3647.5,2.74160383]
[1752992558589,4.309,3648.5,3647.5,2.76901986]
[1752992558890,4.309,3648.5,3647.5,3.37121986]
[1752992560188,4.307,3648.4,3647.5,3.37121986]
[1752992561626,4.307,3648.4,3647.5,3.34380383]
[1752992563194,0.4658,3648.3,3647.5,0.1368]
[1752992563527,3.34362194,3648.3,3647.5,3.34380383]
[1752992563697,3.34362194,3648.3,3647.5,4.03530925]
[1752992563896,0.6026,3648.3,3647.5,4.03530925]
[1752992564235,0.1368,3648.3,3647.5,4.03530925]
[1752992566530,2.87785574,3648.3,3647.5,4.03530925]
[1752992566835,0.1368,3648.3,3647.5,4.03530925]
[1752992567191,0.1368,3648.3,3647.5,3.56990925]
[1752992567433,0.1368,3648.3,3647.5,4.03530925]
[1752992568294,2.87780802,3648.3,3647.5,3.56990925]
[1752992568693,3.20688848,3648.2,3647.5,3.56990925]
[1752992568893,0.4658,3648.2,3647.5,3.56990925]
[1752992569709,1.3418,3648.2,3647.5,0.1368]
[1752992569908,3.20705047,3648.0,3647.5,0.1368]
[1752992570222,0.4658,3648.0,3647.5,0.1368]
[1752992570735,2.74330939,3647.9,3647.5,0.1368]
[1752992571531,0.002,3647.9,3647.5,0.1368]
[1752992572502,0.002,3647.9,3647.5,2.87840383]
[1752992573205,0.002,3647.9,3647.5,3.34380383]
[1752992575003,0.002,3647.9,3647.5,0.1368]
[1752992575442,3.20933897,3647.6,3646.9,2.74200579]
[1752992575639,0.4678,3647.6,3647.2,0.1368]
[1752992575856,0.002,3647.6,3647.2,0.1368]
[1752992577540,2.74353877,3647.6,3647.2,0.1368]
[1752992577837,0.4658,3647.5,3647.2,0.1368]
[1752992578315,0.002,3647.6,3647.2,0.1368]
[1752992578527,0.55,3647.4,3646.3,0.8122]
[1752992578819,2.7418751,3647.2,3646.4,2.74237513]
[1752992579226,2.74197661,3647.1,3646.3,0.8122]
[1752992579414,2.74168269,3647.4,3646.4,3.20960546]
[1752992579620,2.74168269,3647.4,3646.7,2.74219621]
[1752992580136,2.7416118,3647.5,3646.7,2.74219621]
[1752992580333,2.74168355,3647.4,3646.7,2.74219621]
[1752992580637,2.74176306,3647.3,3646.6,2.74226146]
[1752992580854,3.17176306,3647.3,3646.6,2.74226146]
[1752992581023,3.17176306,3647.3,3646.7,2.74219475]
[1752992581410,3.17176306,3647.3,3646.5,3.14721171]
[1752992581609,3.17176306,3647.3,3646.6,2.74223645]
[1752992581941,0.43,3647.3,3646.7,2.74218795]
[1752992582628,0.43,3647.3,3646.8,2.7420775]
[1752992583105,0.002,3647.6,3646.9,0.4672]
[1752992583305,0.002,3647.6,3647.0,2.74196786]
[1752992583505,0.002,3647.6,3647.0,0.7941]
[1752992583744,0.002,3647.6,3647.1,2.74184829]
[1752992584303,0.002,3647.6,3647.2,0.4672]
[1752992584525,0.002,3647.6,3647.4,2.74162481]
[1752992584741,0.002,3647.6,3647.3,3.20888226]
[1752992584942,0.002,3647.6,3647.3,0.4672]
[1752992585364,0.002,3647.6,3647.4,0.4672]
[1752992585537,0.002,3647.6,3647.3,2.74169658]
[1752992586023,0.002,3647.6,3647.2,2.74182024]
[1752992586224,0.002,3647.6,3647.3,2.74174654]
[1752992586741,0.002,3647.6,3647.2,3.20900615]
[1752992586949,0.002,3647.6,3647.1,2.74188173]
[1752992587256,0.002,3647.6,3647.2,2.74181298]
[1752992587943,0.002,3647.6,3647.3,2.74174987]
[1752992588261,0.002,3647.6,3647.1,0.35360774]
[1752992588605,0.002,3647.6,3647.5,0.1368]
[1752992590043,0.432,3647.6,3647.5,0.1368]
[1752992590249,0.002,3647.6,3647.5,0.1368]
[1752992590453,0.002,3647.6,3647.5,0.604]
[1752992590812,0.002,3647.6,3647.5,0.1368]
[1752992591213,0.432,3647.6,3647.5,0.1368]
[1752992592053,3.17352867,3647.6,3647.5,0.1368]
[1752992593554,0.432,3647.6,3647.5,0.1368]
[1752992593953,0.002,3647.6,3647.5,0.1368]
[1752992596488,0.432,3647.6,3646.8,2.74212848]
[1752992596702,0.7867,3647.5,3647.2,0.1368]
[1752992596991,3.1717355,3647.4,3647.2,0.1368]
[1752992597288,4.268,3647.3,3647.2,0.1368]
[1752992597474,7.00975417,3647.3,3647.2,0.1368]
[1752992598190,4.268,3647.3,3647.2,0.1368]
[1752992598480,7.00975417,3647.3,3647.2,0.1368]
[1752992598690,7.43975417,3647.3,3647.2,0.1368]
[1752992599188,4.698,3647.3,3647.2,0.1368]
[1752992600863,4.268,3647.3,3647.2,0.1368]
[1752992602372,4.268,3647.3,3647.2,0.604]
[1752992602986,4.268,3647.3,3647.2,0.1368]
[1752992608390,4.7098,3647.3,3647.2,0.1368]
[1752992610393,4.7098,3647.3,3646.6,0.7771]
[1752992610598,1.2685,3647.2,3646.9,0.1368]
[1752992610780,4.01036,3647.2,3646.9,0.1368]
[1752992610986,4.268,3647.3,3646.9,0.1368]
[1752992611671,7.00976634,3647.3,3646.9,0.1368]
[1752992611993,7.45156634,3647.3,3646.9,0.1368]
[1752992612498,0.4418,3647.2,3646.9,0.1368]
[1752992612797,4.254,3647.1,3646.9,0.1368]
[1752992614666,4.6958,3647.1,3646.9,0.1368]
[1752992619404,4.254,3647.1,3646.9,0.1368]
[1752992620405,0.4418,3647.0,3646.9,0.1368]
[1752992622711,0.4418,3647.0,3646.9,0.1378]
[1752992623620,3.1837797,3647.0,3646.9,0.1378]
[1752992623912,0.4418,3647.0,3646.9,0.1378]
[1752992624208,3.1837797,3647.0,3646.9,0.1378]
[1752992626176,3.1837797,3647.0,3646.9,0.001]
[1752992626999,5.00532235,3647.0,3646.9,0.001]
[1752992628519,5.55532235,3647.0,3646.9,0.001]
[1752992629981,4.76542235,3647.0,3646.9,0.001]
[1752992630311,5.58242235,3647.0,3646.9,0.001]
[1752992630494,8.73120604,3647.0,3646.9,0.001]
[1752992630683,3.55943089,3646.4,3646.3,0.001]
[1752992630882,8.42460803,3646.4,3646.3,0.001]
[1752992631078,8.86640803,3646.4,3646.3,0.001]
[1752992632295,9.41640803,3646.4,3646.3,0.001]
[1752992634235,12.41640803,3646.4,3646.3,0.001]
[1752992634438,3.29258131,3646.2,3646.1,0.001]
[1752992634741,16.16736393,3646.2,3646.1,0.001]
[1752992634927,16.60916393,3646.2,3646.1,0.001]
[1752992635124,16.60916393,3646.2,3646.1,1e-08]
[1752992635442,46.60916393,3646.2,3646.1,1e-08]
[1752992636000,7.92940659,3646.2,3646.1,1e-08]
[1752992636299,0.002,3647.6,3647.2,0.7941]
[1752992636638,0.002,3647.6,3647.5,0.1368]
[1752992636950,0.4438,3647.6,3647.5,0.1368]
[1752992637151,0.002,3647.6,3647.5,0.1368]
[1752992637299,1.6488,3647.6,3646.7,0.7941]
[1752992637636,0.55,3647.4,3646.9,0.1368]
[1752992637834,0.1368,3647.5,3646.9,0.1368]
[1752992638042,4.465,3647.3,3647.0,0.4708]
[1752992638534,4.464,3647.2,3647.0,0.4708]
[1752992638935,4.464,3647.2,3646.9,0.1368]
[1752992639717,4.464,3647.2,3646.9,2.87884904]
[1752992639915,4.464,3647.2,3647.0,2.74197559]
[1752992640115,4.464,3647.2,3647.0,0.4708]
[1752992640524,4.464,3647.2,3646.9,0.74436978]
[1752992642008,0.002,3647.9,3647.8,2.74137836]
[1752992642208,0.002,3647.9,3647.8,3.58149214]
[1752992642436,0.002,3647.9,3647.8,4.05229214]
[1752992644182,0.002,3648.1,3648.0,2.74122807]
[1752992644385,0.002,3648.1,3648.0,7.39951009]
[1752992644876,0.002,3648.1,3648.0,8.07422528]
[1752992645100,0.002,3648.1,3648.0,7.87031009]
[1752992645386,0.002,3648.1,3648.0,4.87031009]